fUSD/lending_fUSD_20250507
["ID","MTS","AMOUNT","RATE_DAILY","PERIOD"]
[360151982,1746577840676,-450.0,0.00019582,2]
[360151983,1746577840685,-523.04,0.00019582,2]
[360151984,1746577840695,-450.0,0.00019582,2]
[360151985,1746577840706,-816.72,0.00019582,2]
[360151986,1746577840716,-186.77213404,0.00019582,2]
[360151987,1746577840726,-542.41566943,0.00019582,2]
[360151988,1746577840735,-569.26,0.00019582,2]
[360151989,1746577840745,-450.0,0.00019582,2]
[360151990,1746577840755,-450.0,0.00019582,2]
[360151991,1746577840764,-450.0,0.00019582,2]
[360151992,1746577840774,-3836.65,0.00019582,2]
[360151993,1746577840784,-450.0,0.00019582,2]
[360151994,1746577840794,-464.18,0.00019582,2]
[360151995,1746577840803,-1670.92,0.00019582,2]
[360151996,1746577840812,-450.0,0.00019582,2]
[360151997,1746577840822,-450.0,0.00019582,2]
[360151998,1746577840831,-450.0,0.00019582,2]
[360151999,1746577840841,-3107.8,0.00019582,2]
[360152000,1746577840850,-170.2841135,0.00019582,2]
[360152001,1746577840859,-450.0,0.00019583,2]
[360152002,1746577840869,-450.0,0.00019583,2]
[360152003,1746577840878,-276.81253751,0.00019583,2]
[360152004,1746577840887,-450.0,0.00019583,2]
[360152005,1746577840897,-450.0,0.00019583,2]
[360152006,1746577840906,-452.39273584,0.00019583,2]
[360152007,1746577840915,-450.0,0.00019583,2]
[360152008,1746577840925,-250.0,0.00019583,2]
[360152009,1746577840934,-450.0,0.00019583,2]
[360152010,1746577840943,-450.0,0.00019583,2]
[360152011,1746577840953,-450.0,0.00019583,2]
[360152012,1746577840962,-450.0,0.00019583,2]
[360152013,1746577840971,-450.0,0.00019583,2]
[360152014,1746577840982,-450.0,0.00019583,2]
[360152015,1746577840992,-450.0,0.00019583,2]
[360152016,1746577841001,-450.0,0.00019583,2]
[360152017,1746577841011,-450.0,0.00019583,2]
[360152018,1746577841021,-450.0,0.00019583,2]
[360152019,1746577841031,-450.0,0.00019583,2]
[360152020,1746577841040,-450.0,0.00019583,2]
[360152021,1746577841050,-450.0,0.00019583,2]
[360152022,1746577841060,-652.92,0.00019583,2]
[360152023,1746577841070,-450.0,0.00019583,2]
[360152024,1746577841079,-450.0,0.00019583,2]
[360152025,1746577841088,-450.0,0.00019583,2]
[360152026,1746577841098,-450.0,0.00019583,2]
[360152027,1746577841108,-500.0,0.00019583,2]
[360152028,1746577841118,-450.0,0.00019583,2]
[360152029,1746577841127,-450.0,0.00019583,2]
[360152030,1746577841136,-450.0,0.00019583,2]
[360152031,1746577841146,-450.0,0.00019583,2]
[360152032,1746577841156,-450.0,0.00019583,2]
[360152033,1746577841166,-496.05973536,0.00019583,2]
[360152034,1746577841174,-273.79832624,0.00019583,2]
[360152035,1746577841183,-450.0,0.00019583,2]
[360152036,1746577841193,-450.0,0.00019583,2]
[360152037,1746577841203,-450.0,0.00019583,2]
[360152038,1746577841212,-450.0,0.00019583,2]
[360152039,1746577841222,-450.0,0.00019583,2]
[360152040,1746577841231,-450.0,0.00019583,2]
[360152041,1746577841241,-450.0,0.00019583,2]
[360152042,1746577841250,-450.0,0.00019583,2]
[360152043,1746577841260,-371.40428258,0.00019583,2]
[360152044,1746577841269,-544.98338651,0.00019583,2]
[360152045,1746577841278,-500.0,0.00019583,2]
[360152046,1746577841288,-450.0,0.00019583,2]
[360152047,1746577841297,-450.0,0.00019583,2]
[360152048,1746577841307,-450.0,0.00019583,2]
[360152049,1746577841317,-450.0,0.00019583,2]
[360152050,1746577841326,-450.0,0.00019583,2]
[360152051,1746577841336,-450.0,0.00019583,2]
[360152052,1746577841345,-450.0,0.00019583,2]
[360152053,1746577841355,-212.18080508,0.00019583,2]
[360152054,1746577841363,-450.0,0.00019583,2]
[360152055,1746577841373,-450.0,0.00019583,2]
[360152056,1746577841381,-450.0,0.00019583,2]
[360152057,1746577841390,-328.39348647,0.00019583,2]
[360152058,1746577841400,-450.0,0.00019583,2]
[360152059,1746577841409,-450.0,0.00019583,2]
[360152060,1746577841420,-450.0,0.00019583,2]
[360152061,1746577841428,-450.0,0.00019583,2]
[360152062,1746577841438,-450.0,0.00019583,2]
[360152063,1746577841447,-450.0,0.00019583,2]
[360152064,1746577841456,-460.11948194,0.00019583,2]
[360152065,1746577841465,-553.32897821,0.00019583,2]
[360152066,1746577841475,-450.0,0.00019583,2]
[360152067,1746577841485,-372.93368299,0.00019583,2]
[360152068,1746577841494,-450.0,0.00019583,2]
[360152069,1746577841504,-450.0,0.00019583,2]
[360152070,1746577841513,-450.0,0.00019583,2]
[360152071,1746577841522,-450.0,0.00019583,2]
[360152072,1746577841653,-450.0,0.00019583,2]
[360152073,1746577841674,-450.0,0.00019583,2]
[360152074,1746577841684,-450.0,0.00019583,2]
[360152075,1746577841693,-366.31219986,0.00019583,2]
[360152076,1746577841705,-450.0,0.00019583,2]
[360152077,1746577841719,-450.0,0.00019583,2]
[360152078,1746577841728,-450.0,0.00019583,2]
[360152079,1746577841737,-490.0,0.00019583,2]
[360152080,1746577841749,-450.0,0.00019583,2]
[360152081,1746577841758,-450.0,0.00019583,2]
[360152082,1746577841767,-450.0,0.00019583,2]
[360152083,1746577841778,-450.0,0.00019583,2]
[360152084,1746577841787,-567.86305537,0.00019583,2]
[360152085,1746577841797,-450.0,0.00019583,2]
[360152086,1746577841806,-450.0,0.00019583,2]
[360152087,1746577841816,-450.0,0.00019583,2]
[360152088,1746577841825,-450.0,0.00019583,2]
[360152089,1746577841835,-450.0,0.00019583,2]
[360152090,1746577841844,-450.0,0.00019583,2]
[360152091,1746577841853,-450.0,0.00019583,2]
[360152092,1746577841862,-450.0,0.00019583,2]
[360152093,1746577841871,-450.0,0.00019583,2]
[360152094,1746577841880,-490.0,0.00019583,2]
[360152095,1746577841890,-450.0,0.00019583,2]
[360152096,1746577841899,-490.0,0.00019583,2]
[360152097,1746577841909,-450.0,0.00019583,2]
[360152098,1746577841918,-450.0,0.00019583,2]
[360152099,1746577841928,-450.0,0.00019583,2]
[360152100,1746577841937,-450.0,0.00019583,2]
[360152101,1746577841946,-450.0,0.00019583,2]
[360152102,1746577841957,-450.0,0.00019583,2]
[360152103,1746577841966,-450.0,0.00019583,2]
[360152104,1746577841975,-450.0,0.00019583,2]
[360152105,1746577841985,-203.56719084,0.00019583,2]
[360152106,1746577841995,-517.87168755,0.00019583,2]
[360152107,1746577842005,-450.0,0.00019583,2]
[360152108,1746577842015,-315.94169893,0.00019583,2]
[360152109,1746577842025,-450.0,0.00019583,2]
[360152110,1746577842035,-450.0,0.00019583,2]
[360152111,1746577842046,-450.0,0.00019583,2]
[360152112,1746577842056,-450.0,0.00019583,2]
[360152113,1746577842066,-450.0,0.00019583,2]
[360152114,1746577842075,-450.0,0.00019583,2]
[360152115,1746577842084,-450.0,0.00019583,2]
[360152116,1746577842095,-450.0,0.00019583,2]
[360152117,1746577842104,-572.61478826,0.00019583,2]
[360152118,1746577842114,-450.0,0.00019583,2]
[360152119,1746577842123,-450.0,0.00019583,2]
[360152120,1746577842133,-424.86931227,0.00019583,2]
[360152121,1746577842142,-517.74030655,0.00019583,2]
[360152122,1746577842151,-645.11,0.00019583,2]
[360152123,1746577842161,-559.72453057,0.00019583,2]
[360152124,1746577842172,-301.55924443,0.00019583,2]
[360152125,1746577842183,-450.0,0.00019583,2]
[360152126,1746577842194,-450.0,0.00019583,2]
[360152127,1746577842204,-450.0,0.00019583,2]
[360152128,1746577842214,-450.0,0.00019583,2]
[360152129,1746577842224,-450.0,0.00019583,2]
[360152130,1746577842234,-450.0,0.00019583,2]
[360152131,1746577842244,-308.94026433,0.00019583,2]
[360152132,1746577842253,-323.12287038,0.00019583,2]
[360152133,1746577842263,-450.0,0.00019583,2]
[360152134,1746577842272,-450.0,0.00019583,2]
[360152135,1746577842281,-450.0,0.00019583,2]
[360152136,1746577842291,-450.0,0.00019583,2]
[360152137,1746577842300,-214.09884759,0.00019583,2]
[360152138,1746577842310,-931.14,0.00019583,2]
[360152139,1746577842319,-450.0,0.00019583,2]
[360152140,1746577842329,-450.0,0.00019583,2]
[360152141,1746577842339,-493.2,0.00019583,2]
[360152142,1746577842348,-450.0,0.00019583,2]
[360152143,1746577842358,-450.0,0.00019583,2]
[360152144,1746577842367,-709.09,0.00019583,2]
[360152145,1746577842377,-450.0,0.00019583,2]
[360152146,1746577842386,-450.0,0.00019583,2]
[360152147,1746577842396,-450.0,0.00019583,2]
[360152148,1746577842405,-450.0,0.00019583,2]
[360152149,1746577842416,-570.18,0.00019583,2]
[360152150,1746577842425,-450.0,0.00019583,2]
[360152151,1746577842435,-545.28170828,0.00019583,2]
[360152152,1746577842444,-450.0,0.00019583,2]
[360152153,1746577842454,-450.0,0.00019583,2]
[360152154,1746577842464,-450.0,0.00019583,2]
[360152155,1746577842474,-781.08,0.00019583,2]
[360152156,1746577842483,-1694.78,0.00019583,2]
[360152157,1746577842492,-450.0,0.00019583,2]
[360152158,1746577842502,-477.93,0.00019583,2]
[360152159,1746577842511,-2119.84,0.00019583,2]
[360152160,1746577842520,-470.0,0.00019583,2]
[360152161,1746577842530,-497.16,0.00019583,2]
[360152162,1746577842539,-450.0,0.00019583,2]
[360152163,1746577842549,-903.01,0.00019583,2]
[360152164,1746577842558,-2023.66,0.00019583,2]
[360152165,1746577842567,-450.0,0.00019583,2]
[360152166,1746577842576,-2198.4,0.00019583,2]
[360152167,1746577842586,-2480.4,0.00019583,2]
[360152168,1746577842595,-502.64,0.00019583,2]
[360152169,1746577842605,-2174.55,0.00019583,2]
[360152170,1746577842614,-512.11,0.00019583,2]
[360152171,1746577842623,-450.0,0.00019583,2]
[360152172,1746577842633,-500.0,0.00019583,2]
[360152173,1746577842643,-503.83,0.00019583,2]
[360152175,1746577842652,-450.0,0.00019583,2]
[360152176,1746577842662,-4457.12,0.00019583,2]
[360152177,1746577842673,-450.0,0.00019583,2]
[360152178,1746577842683,-450.0,0.00019583,2]
[360152179,1746577842693,-450.0,0.00019583,2]
[360152180,1746577842702,-27629.44,0.00019583,2]
[360152181,1746577842715,-500.0,0.00019583,2]
[360152182,1746577842726,-450.0,0.00019583,2]
[360152183,1746577842739,-450.0,0.00019583,2]
[360152184,1746577842748,-450.0,0.00019583,2]
[360152185,1746577842758,-450.0,0.00019583,2]
[360152186,1746577842767,-450.0,0.00019583,2]
[360152187,1746577842777,-1002.33,0.00019583,2]
[360152188,1746577842788,-264.55646485,0.00019583,2]
[360152190,1746577842798,-450.0,0.00019583,2]
[360152192,1746577842809,-450.0,0.00019583,2]
[360152193,1746577842818,-450.0,0.00019583,2]
[360152194,1746577842827,-450.0,0.00019583,2]
[360152195,1746577842837,-450.0,0.00019583,2]
[360152196,1746577842846,-2422.34,0.00019583,2]
[360152197,1746577842855,-450.0,0.00019583,2]
[360152199,1746577842865,-450.0,0.00019583,2]
[360152203,1746577842875,-450.0,0.00019583,2]
[360152206,1746577842884,-9336.69,0.00019583,2]
[360152210,1746577842894,-300.0,0.00019583,2]
[360152213,1746577842903,-816.67,0.00019583,2]
[360152216,1746577842912,-450.0,0.00019583,2]
[360152218,1746577842923,-450.0,0.00019583,2]
[360152221,1746577842933,-450.0,0.00019583,2]
[360152223,1746577842943,-1046.2,0.00019583,2]
[360152224,1746577842953,-450.0,0.00019583,2]
[360152225,1746577842962,-2065.86,0.00019583,2]
[360152226,1746577842972,-6934.43,0.00019583,2]
[360152227,1746577842981,-450.0,0.00019583,2]
[360152228,1746577842990,-1651.71,0.00019583,2]
[360152229,1746577843000,-450.0,0.00019583,2]
[360152230,1746577843009,-1791.16,0.00019583,2]
[360152231,1746577843019,-450.0,0.00019583,2]
[360152232,1746577843028,-450.0,0.00019583,2]
[360152233,1746577843038,-450.0,0.00019583,2]
[360152234,1746577843047,-450.0,0.00019583,2]
[360152235,1746577843057,-577.26,0.00019583,2]
[360152236,1746577843067,-450.0,0.00019583,2]
[360152237,1746577843076,-450.0,0.00019583,2]
[360152238,1746577843086,-450.0,0.00019583,2]
[360152239,1746577843096,-294.29828647,0.00019583,2]
[360152240,1746577843105,-865.93,0.00019583,2]
[360152241,1746577843115,-358.0,0.00019583,2]
[360152242,1746577843124,-450.0,0.00019583,2]
[360152243,1746577843133,-206491.4464,0.00019583,2]
[360152244,1746577843143,-505.66556759,0.00019584,2]
[360152245,1746577843153,-537.22332147,0.00019598,2]
[360152246,1746577843162,-1000.0,0.000196,2]
[360152247,1746577843173,-200.0,0.00019605,2]
[360152248,1746577843182,-151.0,0.00019626,2]
[360152249,1746577843192,-1211.55453086,0.00019629,2]
[360152250,1746577843202,-1223.92232223,0.00019629,2]
[360152251,1746577843211,-1940.59991068,0.00019629,2]
[360152252,1746577843221,-592.21498928,0.00019637,2]
[360152253,1746577843230,-1893.08111936,0.00019639,2]
[360152254,1746577843240,-313.59186844,0.00019641,2]
[360152255,1746577843250,-751.2,0.00019646,2]
[360152256,1746577843259,-2687.1,0.00019646,2]
[360152257,1746577843269,-2161.4,0.00019646,2]
[360152258,1746577843279,-450.0,0.00019646,2]
[360152259,1746577843288,-450.0,0.00019646,2]
[360152260,1746577843297,-1384.89,0.00019646,2]
[360152261,1746577843307,-758.47,0.00019646,2]
[360152262,1746577843317,-647.61,0.00019646,2]
[360152263,1746577843326,-552.89,0.00019646,2]
[360152264,1746577843336,-450.0,0.00019646,2]
[360152265,1746577843345,-1732.35,0.00019646,2]
[360152266,1746577843355,-1953.39,0.00019646,2]
[360152267,1746577843364,-587.34,0.00019646,2]
[360152268,1746577843374,-469.39,0.00019646,2]
[360152269,1746577843383,-945.45,0.00019646,2]
[360152270,1746577843393,-973.83,0.00019646,2]
[360152271,1746577843402,-962.16,0.00019646,2]
[360152272,1746577843411,-481.44,0.00019646,2]
[360152273,1746577843421,-450.0,0.00019646,2]
[360152274,1746577843430,-450.0,0.00019646,2]
[360152275,1746577843439,-501.3,0.00019646,2]
[360152276,1746577843449,-450.0,0.00019646,2]
[360152277,1746577843459,-358.31792443,0.00019672,2]
[360152278,1746577843468,-500.0,0.00019673,2]
[360152279,1746577843478,-500.51445956,0.00019673,2]
[360152280,1746577843487,-483.82,0.00019673,2]
[360152281,1746577843498,-450.0,0.00019673,2]
[360152282,1746577843508,-599.1,0.00019673,2]
[360152284,1746577843517,-681.26,0.00019673,2]
[360152285,1746577843526,-450.0,0.00019673,2]
[360152286,1746577843536,-1279.22,0.00019673,2]
[360152287,1746577843545,-605.57,0.00019673,2]
[360152288,1746577843554,-450.0,0.00019673,2]
[360152289,1746577843564,-1776.8,0.00019673,2]
[360152290,1746577843574,-450.0,0.00019673,2]
[360152291,1746577843584,-458.43,0.00019673,2]
[360152292,1746577843593,-450.0,0.00019673,2]
[360152293,1746577843603,-469.94,0.00019673,2]
[360152294,1746577843612,-1243.88,0.00019673,2]
[360152295,1746577843620,-450.0,0.00019673,2]
[360152296,1746577843629,-1670.92,0.00019673,2]
[360152297,1746577843638,-5740.7187949,0.00019674,2]
[360152298,1746577843647,-993.0048651,0.00019674,2]
[360152299,1746577843656,-100294.2849999,0.00019674,2]
[360152300,1746577843665,-46059.1094129,0.00019674,2]
[360152301,1746577843674,-450.0,0.00019678,2]
[360152302,1746577843683,-450.0,0.00019679,2]
[360152303,1746577843692,-450.0,0.00019679,2]
[360152304,1746577843702,-450.0,0.00019679,2]
[360152305,1746577843714,-419.26244551,0.00019679,2]
[360152306,1746577843723,-271.54,0.00019679,2]
[360152307,1746577843733,-450.0,0.00019679,2]
[360152308,1746577843743,-450.0,0.00019679,2]
[360152309,1746577843751,-450.0,0.00019679,2]
[360152310,1746577843761,-450.0,0.00019679,2]
[360152311,1746577843770,-302.71406687,0.00019679,2]
[360152312,1746577843780,-562.00679849,0.00019679,2]
[360152313,1746577843789,-450.0,0.00019679,2]
[360152314,1746577843799,-496.75958284,0.00019679,2]
[360152315,1746577843808,-450.0,0.00019679,2]
[360152316,1746577843817,-450.0,0.00019679,2]
[360152317,1746577843826,-450.0,0.00019679,2]
[360152318,1746577843836,-450.0,0.00019679,2]
[360152319,1746577843846,-628.07,0.00019679,2]
[360152320,1746577843855,-450.0,0.00019679,2]
[360152321,1746577843864,-577.24,0.00019679,2]
[360152322,1746577843874,-450.0,0.00019679,2]
[360152323,1746577843882,-517.94623228,0.00019679,2]
[360152324,1746577843891,-450.0,0.00019679,2]
[360152325,1746577843901,-586.58,0.00019679,2]
[360152326,1746577843909,-450.0,0.00019679,2]
[360152327,1746577843919,-450.0,0.00019679,2]
[360152328,1746577843928,-450.0,0.00019679,2]
[360152329,1746577843937,-450.0,0.00019679,2]
[360152330,1746577844063,-522.87276112,0.00019679,2]
[360152331,1746577844073,-450.0,0.00019679,2]
[360152332,1746577844083,-450.0,0.00019679,2]
[360152333,1746577844092,-450.0,0.00019679,2]
[360152334,1746577844101,-1154.79,0.00019679,2]
[360152335,1746577844110,-1148.29,0.00019679,2]
[360152336,1746577844119,-450.0,0.00019679,2]
[360152337,1746577844128,-869.94,0.00019679,2]
[360152338,1746577844138,-838.42,0.00019679,2]
[360152339,1746577844147,-450.0,0.00019679,2]
[360152340,1746577844156,-2288.36,0.00019679,2]
[360152341,1746577844167,-2299.24,0.00019679,2]
[360152342,1746577844177,-450.0,0.00019679,2]
[360152343,1746577844186,-450.0,0.00019679,2]
[360152344,1746577844196,-1395.73,0.00019679,2]
[360152345,1746577844207,-450.0,0.00019679,2]
[360152346,1746577844216,-705.39,0.00019679,2]
[360152347,1746577844226,-483.82,0.00019679,2]
[360152348,1746577844235,-2379.82,0.00019679,2]
[360152349,1746577844244,-1695.97,0.00019679,2]
[360152350,1746577844253,-450.0,0.00019679,2]
[360152351,1746577844262,-599.1,0.00019679,2]
[360152352,1746577844271,-785.82,0.00019679,2]
[360152353,1746577844280,-681.26,0.00019679,2]
[360152354,1746577844289,-831.15,0.00019679,2]
[360152355,1746577844298,-40338.94,0.00019679,2]
[360152356,1746577844307,-450.0,0.00019679,2]
[360152357,1746577844317,-450.0,0.00019679,2]
[360152358,1746577844326,-1279.22,0.00019679,2]
[360152359,1746577844334,-2100.24,0.00019679,2]
[360152360,1746577844343,-617.09,0.00019679,2]
[360152361,1746577844352,-1027.23,0.00019679,2]
[360152362,1746577844361,-1171.57,0.00019679,2]
[360152363,1746577844370,-605.57,0.00019679,2]
[360152364,1746577844379,-450.0,0.00019679,2]
[360152365,1746577844387,-450.0,0.00019679,2]
[360152366,1746577844396,-450.0,0.00019679,2]
[360152367,1746577844406,-1776.8,0.00019679,2]
[360152368,1746577844416,-559.56,0.00019679,2]
[360152369,1746577844425,-450.0,0.00019679,2]
[360152370,1746577844434,-450.0,0.00019679,2]
[360152371,1746577844443,-450.0,0.00019679,2]
[360152372,1746577844452,-458.43,0.00019679,2]
[360152373,1746577844461,-450.0,0.00019679,2]
[360152374,1746577844470,-564.6,0.00019679,2]
[360152375,1746577844479,-2259.17,0.00019679,2]
[360152376,1746577844488,-512.04,0.00019679,2]
[360152377,1746577844497,-450.0,0.00019679,2]
[360152378,1746577844507,-759.38,0.00019679,2]
[360152379,1746577844516,-489.03186115,0.00019679,2]
[360152380,1746577844525,-151.0,0.00019679,2]
[360152381,1746577844535,-469.94,0.00019679,2]
[360152382,1746577844544,-450.0,0.00019679,2]
[360152383,1746577844554,-1243.88,0.00019679,2]
[360152384,1746577844563,-151.0,0.00019679,2]
[360152385,1746577844572,-523.04,0.00019679,2]
[360152386,1746577844582,-816.72,0.00019679,2]
[360152387,1746577844591,-450.0,0.00019679,2]
[360152388,1746577844601,-3836.65,0.00019679,2]
[360152389,1746577844610,-464.18,0.00019679,2]
[360152390,1746577844620,-1670.92,0.00019679,2]
[360152391,1746577844629,-450.0,0.00019679,2]
[360152392,1746577844638,-3107.8,0.00019679,2]
[360152393,1746577844647,-2963.13234106,0.0001968,2]
[360152394,1746577844657,-450.0,0.0001968,2]
[360152395,1746577844670,-450.0,0.0001968,2]
[360152396,1746577844682,-450.0,0.0001968,2]
[360152397,1746577844692,-500.0,0.0001968,2]
[360152398,1746577844706,-450.0,0.0001968,2]
[360152399,1746577844715,-450.0,0.0001968,2]
[360152400,1746577844725,-450.0,0.0001968,2]
[360152401,1746577844735,-450.0,0.0001968,2]
[360152402,1746577844746,-450.0,0.0001968,2]
[360152403,1746577844757,-500.0,0.0001968,2]
[360152404,1746577844767,-450.0,0.0001968,2]
[360152405,1746577844777,-450.0,0.0001968,2]
[360152406,1746577844787,-688.3,0.0001968,2]
[360152407,1746577844796,-450.0,0.0001968,2]
[360152408,1746577844805,-450.0,0.0001968,2]
[360152409,1746577844815,-1057.45,0.0001968,2]
[360152410,1746577844824,-450.0,0.0001968,2]
[360152411,1746577844833,-450.0,0.0001968,2]
[360152412,1746577844842,-450.0,0.0001968,2]
[360152413,1746577844851,-734.08,0.0001968,2]
[360152414,1746577844861,-478.69890872,0.0001968,2]
[360152415,1746577844872,-450.0,0.0001968,2]
[360152416,1746577844882,-450.0,0.0001968,2]
[360152417,1746577844891,-450.0,0.0001968,2]
[360152418,1746577844901,-450.0,0.0001968,2]
[360152419,1746577844910,-450.0,0.0001968,2]
[360152420,1746577844922,-490.0,0.0001968,2]
[360152421,1746577844932,-450.0,0.0001968,2]
[360152422,1746577844942,-450.0,0.0001968,2]
[360152423,1746577844951,-641.02,0.0001968,2]
[360152424,1746577844962,-450.0,0.0001968,2]
[360152425,1746577844971,-450.0,0.0001968,2]
[360152426,1746577844981,-450.0,0.0001968,2]
[360152427,1746577844990,-450.0,0.0001968,2]
[360152428,1746577844999,-575.6,0.0001968,2]
[360152429,1746577845010,-450.0,0.0001968,2]
[360152430,1746577845020,-694.8,0.0001968,2]
[360152431,1746577845030,-450.0,0.0001968,2]
[360152432,1746577845039,-450.0,0.0001968,2]
[360152433,1746577845048,-450.0,0.0001968,2]
[360152434,1746577845058,-450.0,0.0001968,2]
[360152435,1746577845068,-450.0,0.0001968,2]
[360152436,1746577845077,-450.0,0.0001968,2]
[360152437,1746577845087,-450.0,0.0001968,2]
[360152438,1746577845096,-450.0,0.0001968,2]
[360152439,1746577845105,-450.0,0.0001968,2]
[360152440,1746577845114,-450.0,0.0001968,2]
[360152441,1746577845124,-450.0,0.0001968,2]
[360152442,1746577845133,-450.0,0.0001968,2]
[360152443,1746577845143,-450.0,0.0001968,2]
[360152444,1746577845152,-450.0,0.0001968,2]
[360152445,1746577845162,-450.0,0.0001968,2]
[360152446,1746577845174,-450.0,0.0001968,2]
[360152447,1746577845183,-770.06,0.0001968,2]
[360152448,1746577845193,-495.40055347,0.0001968,2]
[360152449,1746577845203,-450.0,0.0001968,2]
[360152450,1746577845213,-567.4,0.0001968,2]
[360152451,1746577845223,-450.0,0.0001968,2]
[360152452,1746577845232,-450.0,0.0001968,2]
[360152453,1746577845241,-450.0,0.0001968,2]
[360152454,1746577845250,-450.0,0.0001968,2]
[360152455,1746577845260,-450.0,0.0001968,2]
[360152456,1746577845269,-450.0,0.0001968,2]
[360152457,1746577845278,-450.0,0.0001968,2]
[360152458,1746577845288,-450.0,0.0001968,2]
[360152459,1746577845297,-481.31865338,0.0001968,2]
[360152460,1746577845306,-450.0,0.0001968,2]
[360152461,1746577845315,-450.0,0.0001968,2]
[360152462,1746577845325,-450.0,0.0001968,2]
[360152463,1746577845334,-450.0,0.0001968,2]
[360152464,1746577845343,-450.0,0.0001968,2]
[360152465,1746577845352,-450.0,0.0001968,2]
[360152466,1746577845362,-1008.89,0.0001968,2]
[360152467,1746577845371,-777.65,0.0001968,2]
[360152468,1746577845381,-450.0,0.0001968,2]
[360152469,1746577845390,-450.0,0.0001968,2]
[360152470,1746577845399,-450.0,0.0001968,2]
[360152471,1746577845409,-450.0,0.0001968,2]
[360152472,1746577845419,-462.2,0.0001968,2]
[360152473,1746577845428,-1033.25,0.0001968,2]
[360152474,1746577845437,-450.0,0.0001968,2]
[360152475,1746577845447,-1116.22,0.0001968,2]
[360152476,1746577845457,-450.0,0.0001968,2]
[360152477,1746577845466,-450.0,0.0001968,2]
[360152478,1746577845475,-450.0,0.0001968,2]
[360152479,1746577845485,-835.99,0.0001968,2]
[360152480,1746577845494,-450.0,0.0001968,2]
[360152481,1746577845504,-450.0,0.0001968,2]
[360152482,1746577845513,-450.0,0.0001968,2]
[360152483,1746577845524,-1220.81,0.0001968,2]
[360152484,1746577845534,-450.0,0.0001968,2]
[360152485,1746577845544,-737.51,0.0001968,2]
[360152486,1746577845553,-450.0,0.0001968,2]
[360152487,1746577845562,-450.0,0.0001968,2]
[360152488,1746577845572,-677.76,0.0001968,2]
[360152489,1746577845581,-543.8,0.0001968,2]
[360152490,1746577845590,-450.0,0.0001968,2]
[360152491,1746577845599,-1476.14,0.0001968,2]
[360152492,1746577845608,-585.45,0.0001968,2]
[360152493,1746577845617,-450.0,0.0001968,2]
[360152494,1746577845626,-608.02,0.0001968,2]
[360152495,1746577845635,-450.0,0.0001968,2]
[360152496,1746577845645,-450.0,0.0001968,2]
[360152497,1746577845655,-450.0,0.0001968,2]
[360152498,1746577845664,-1910.39,0.0001968,2]
[360152499,1746577845675,-450.0,0.0001968,2]
[360152500,1746577845684,-550.51,0.0001968,2]
[360152501,1746577845694,-1150.73,0.0001968,2]
[360152503,1746577845705,-2192.83,0.0001968,2]